bitfinex/quotes_BTCUSD_20240607
["timestamp","ask_amount","ask_price","bid_price","bid_amount"]
[1717775332806,18.82986,71001.0,71000.0,3.66811122]
[1717775332958,18.82986,71001.0,71000.0,3.66511122]
[1717775333161,18.82986,71001.0,71000.0,3.66811122]
[1717775333362,18.82986,71001.0,71000.0,3.66511122]
[1717775333604,18.82986,71001.0,71000.0,3.71071811]
[1717775333932,18.82986,71001.0,71000.0,3.66811122]
[1717775334337,18.82986,71001.0,71000.0,3.75791005]
[1717775334459,18.82986,71001.0,71000.0,3.76091005]
[1717775335088,18.82986,71001.0,71000.0,3.75791005]
[1717775335287,18.82986,71001.0,71000.0,3.75491005]
[1717775335688,18.82986,71001.0,71000.0,3.76091005]
[1717775336573,18.82986,71001.0,71000.0,3.75791005]
[1717775336707,18.82986,71001.0,71000.0,3.71230316]
[1717775336911,18.82986,71001.0,71000.0,3.71530316]
[1717775337321,18.82986,71001.0,71000.0,3.76091005]
[1717775338247,18.82986,71001.0,71000.0,4.24260005]
[1717775338462,18.82986,71001.0,71000.0,4.23660005]
[1717775339364,18.82986,71001.0,71000.0,4.24260005]
[1717775340603,18.82986,71001.0,71000.0,4.23960005]
[1717775340801,18.82986,71001.0,71000.0,4.23660005]
[1717775341200,18.82986,71001.0,71000.0,4.23960005]
[1717775342214,18.02286,71001.0,71000.0,7.0138866]
[1717775342413,17.93956,71001.0,71000.0,6.0338866]
[1717775342624,17.67545771,71001.0,71000.0,6.10611484]
[1717775343035,17.17565771,71001.0,71000.0,6.10611484]
[1717775343618,17.17565771,71001.0,71000.0,6.07001829]
[1717775344018,17.17565771,71001.0,71000.0,6.07301829]
[1717775344219,17.17565771,71001.0,71000.0,6.10417408]
[1717775344418,17.17565771,71001.0,71000.0,6.10117408]
[1717775344930,17.17565771,71001.0,71000.0,6.10417408]
[1717775345451,17.17565771,71001.0,71000.0,6.10117408]
[1717775345832,17.17565771,71001.0,71000.0,6.09817408]
[1717775346053,17.17565771,71001.0,71000.0,6.10117408]
[1717775346257,17.17565771,71001.0,71000.0,5.94887408]
[1717775346418,17.17565771,71001.0,71000.0,5.85907525]
[1717775346613,17.17565771,71001.0,71000.0,6.01437525]
[1717775346857,17.17565771,71001.0,71000.0,6.10417408]
[1717775347056,17.17565771,71001.0,71000.0,6.10117408]
[1717775347267,17.17565771,71001.0,71000.0,5.85907525]
[1717775347586,17.17565771,71001.0,71000.0,6.64137525]
[1717775347827,17.17565771,71001.0,71000.0,6.99137525]
[1717775348029,17.17565771,71001.0,71000.0,7.08417408]
[1717775348445,17.17565771,71001.0,71000.0,6.88326719]
[1717775348620,17.17565771,71001.0,71000.0,6.99137525]
[1717775348824,17.17565771,71001.0,71000.0,6.99437525]
[1717775348994,17.17565771,71001.0,71000.0,6.99137525]
[1717775349204,17.17565771,71001.0,71000.0,7.03556719]
[1717775349412,17.17565771,71001.0,71000.0,6.99137525]
[1717775349621,17.17565771,71001.0,71000.0,6.99437525]
[1717775349772,17.17565771,71001.0,71000.0,6.93187408]
[1717775349971,17.17565771,71001.0,71000.0,6.99137525]
[1717775350377,17.17565771,71001.0,71000.0,6.99437525]
[1717775351769,17.17565771,71001.0,71000.0,6.99137525]
[1717775351960,17.17565771,71001.0,71000.0,6.99437525]
[1717775352689,17.17565771,71001.0,71000.0,6.64437525]
[1717775352922,17.17565771,71001.0,71000.0,6.49207525]
[1717775353984,17.17565771,71001.0,71000.0,6.64437525]
[1717775354192,17.17565771,71001.0,71000.0,5.83414149]
[1717775354399,17.17565771,71001.0,71000.0,6.64437525]
[1717775355154,15.02760395,71001.0,71000.0,6.43498525]
[1717775355357,14.93493902,71001.0,71000.0,5.8269228]
[1717775355558,14.93493902,71001.0,71000.0,12.61882983]
[1717775355757,14.93493902,71001.0,71000.0,12.71122247]
[1717775356076,14.93493902,71001.0,71000.0,13.72985092]
[1717775356296,14.93493902,71001.0,71000.0,14.45993373]
[1717775356494,14.93493902,71001.0,71000.0,14.50122371]
[1717775356699,14.88401914,71001.0,71000.0,13.80072371]
[1717775357050,14.88401914,71001.0,71000.0,13.79772371]
[1717775357051,14.79715268,71001.0,71000.0,13.79772371]
[1717775357199,14.79715268,71001.0,71000.0,13.80072371]
[1717775358129,13.99015268,71001.0,71000.0,13.80072371]
[1717775358346,13.99015268,71001.0,71000.0,13.80372371]
[1717775358851,13.94834156,71001.0,71000.0,13.80372371]
[1717775361028,13.94834156,71001.0,71000.0,15.23822371]
[1717775361202,12.82464365,71001.0,71000.0,15.23822371]
[1717775362223,12.77953579,71001.0,71000.0,16.41722371]
[1717775362433,12.77953579,71001.0,71000.0,16.41346472]
[1717775362629,12.77953579,71001.0,71000.0,16.41646472]
[1717775363035,12.77953579,71001.0,71000.0,16.41346472]
[1717775363881,12.77953579,71001.0,71000.0,16.3818604]
[1717775364307,11.97253579,71001.0,71000.0,16.34915975]
[1717775364823,11.97253579,71001.0,71000.0,16.31907694]
[1717775365470,11.97253579,71001.0,71000.0,16.16677694]
[1717775365648,11.97253579,71001.0,71000.0,14.31951373]
[1717775365952,11.97253579,71001.0,71000.0,13.26701373]
[1717775366108,11.97253579,71001.0,71000.0,13.26401373]
[1717775367029,11.97253579,71001.0,71000.0,13.26701373]
[1717775367265,11.97253579,71001.0,71000.0,13.22016173]
[1717775367496,11.97253579,71001.0,71000.0,13.21716173]
[1717775367648,11.97253579,71001.0,71000.0,13.00836173]
[1717775367812,11.97253579,71001.0,71000.0,13.01136173]
[1717775368054,11.97253579,71001.0,71000.0,12.76062273]
[1717775368511,11.97253579,71001.0,71000.0,12.76362273]
[1717775368730,11.97253579,71001.0,71000.0,12.76062273]
[1717775368933,11.97253579,71001.0,71000.0,12.75762273]
[1717775369270,11.97253579,71001.0,71000.0,12.76062273]
[1717775369474,11.97253579,71001.0,71000.0,12.44081573]
[1717775369876,11.97253579,71001.0,71000.0,12.59311573]
[1717775370279,11.97253579,71001.0,71000.0,12.59611573]
[1717775370492,11.97253579,71001.0,71000.0,12.59311573]
[1717775370837,11.97253579,71001.0,71000.0,13.29511573]
[1717775371040,11.97253579,71001.0,71000.0,13.90040573]
[1717775371242,11.97253579,71001.0,71000.0,13.54790573]
[1717775371441,11.97253579,71001.0,71000.0,11.90345486]
[1717775371640,11.97253579,71001.0,71000.0,12.60595486]
[1717775371846,11.97253579,71001.0,71000.0,12.64043729]
[1717775372144,11.97253579,71001.0,71000.0,12.67164729]
[1717775372642,11.97253579,71001.0,71000.0,12.69065182]
[1717775372870,11.91169767,71001.0,71000.0,13.60580231]
[1717775373074,11.86944921,71001.0,71000.0,13.60880231]
[1717775373477,11.76636273,71001.0,71000.0,15.95504068]
[1717775373712,11.73594398,71001.0,71000.0,15.95504068]
[1717775373880,10.83768664,71001.0,71000.0,17.41610158]
[1717775374082,10.83768664,71001.0,71000.0,17.41310158]
[1717775374517,10.83768664,71001.0,71000.0,17.41610158]
[1717775375764,10.83768664,71001.0,71000.0,17.65843179]
[1717775376316,10.83768664,71001.0,71000.0,17.41010158]
[1717775376515,10.83768664,71001.0,71000.0,17.41310158]
[1717775376667,10.83768664,71001.0,71000.0,20.38160158]
[1717775377053,10.83768664,71001.0,71000.0,20.17382958]
[1717775377251,10.83768664,71001.0,71000.0,21.05472777]
[1717775377520,10.83768664,71001.0,71000.0,18.85233513]
[1717775378330,10.83768664,71001.0,71000.0,18.74166513]
[1717775378485,10.83768664,71001.0,71000.0,18.74766513]
[1717775378910,10.83768664,71001.0,71000.0,18.004116]
[1717775379106,10.83768664,71001.0,71000.0,14.99813357]
[1717775379283,10.83768664,71001.0,71000.0,15.00113357]
[1717775379489,10.83768664,71001.0,71000.0,14.06835338]
[1717775379695,10.83768664,71001.0,71000.0,14.10583581]
[1717775379902,10.83768664,71001.0,71000.0,14.02953513]
[1717775380102,10.83768664,71001.0,71000.0,13.9920527]
[1717775380292,10.83768664,71001.0,71000.0,14.03010183]
[1717775381263,10.83768664,71001.0,71000.0,14.01450462]
[1717775381676,10.79206011,71001.0,71000.0,14.01450462]
[1717775381875,10.70080722,71001.0,71000.0,14.01450462]
[1717775382321,10.70080722,71001.0,71000.0,13.97645549]
[1717775382518,10.60955358,71001.0,71000.0,13.97645549]
[1717775382668,10.60955358,71001.0,71000.0,16.17884813]
[1717775382994,10.54871897,71001.0,71000.0,17.11162832]
[1717775383426,10.48788402,71001.0,71000.0,17.11162832]
[1717775383643,10.45746674,71001.0,71000.0,17.11162832]
[1717775383844,9.62006674,71001.0,71000.0,17.11162832]
[1717775384251,9.62006674,71001.0,71000.0,17.03659521]
[1717775384468,9.62006674,71001.0,71000.0,17.81412832]
[1717775384858,9.57781961,71001.0,71000.0,19.33582832]
[1717775385074,9.57781961,71001.0,71000.0,19.24862832]
[1717775385270,9.57781961,71001.0,71000.0,17.11162832]
[1717775385482,9.53557193,71001.0,71000.0,17.11162832]
[1717775385908,9.53557193,71001.0,71000.0,16.17884813]
[1717775386537,9.53525234,71001.0,71000.0,16.17884813]
[1717775386735,9.53525234,71001.0,71000.0,16.17584813]
[1717775387214,9.53525234,71001.0,71000.0,16.17284813]
[1717775387459,9.53021597,71001.0,71000.0,16.17584813]
[1717775387926,9.53021597,71001.0,71000.0,16.17284813]
[1717775388139,9.53021597,71001.0,71000.0,16.17584813]
[1717775388788,9.53021597,71001.0,71000.0,16.42167056]
[1717775388994,9.53021597,71001.0,71000.0,16.17584813]
[1717775389201,9.53021597,71001.0,71000.0,16.42467807]
[1717775389402,9.53021597,71001.0,71000.0,16.17584813]
[1717775389604,9.53021597,71001.0,71000.0,16.42767576]
[1717775389820,9.43895293,71001.0,71000.0,16.27537576]
[1717775390033,9.43895293,71001.0,71000.0,16.42767576]
[1717775390242,9.43895293,71001.0,71000.0,16.26346713]
[1717775390499,9.43895293,71001.0,71000.0,13.44726713]
[1717775390703,9.43895293,71001.0,71000.0,17.81111097]
[1717775391362,9.43895293,71001.0,71000.0,17.10861097]
[1717775392291,9.43895293,71001.0,71000.0,18.04879939]
[1717775392545,9.43895293,71001.0,71000.0,17.10861097]
[1717775392982,9.37811246,71001.0,71000.0,17.10861097]
[1717775393192,9.37811246,71001.0,71000.0,18.16111097]
[1717775393453,9.31727156,71001.0,71000.0,18.79311097]
[1717775393675,9.31727156,71001.0,71000.0,17.81111097]
[1717775393888,9.28685137,71001.0,71000.0,17.61825801]
[1717775394310,9.28685137,71001.0,71000.0,17.61513177]
[1717775394543,9.28685137,71001.0,71000.0,17.61213177]
[1717775394768,9.28685137,71001.0,71000.0,17.61813177]
[1717775395210,9.28685137,71001.0,71000.0,17.61513177]
[1717775396092,9.28685137,71001.0,71000.0,17.61813177]
[1717775396308,9.28685137,71001.0,71000.0,17.61513177]
[1717775396535,9.28685137,71001.0,71000.0,18.6096925]
[1717775396753,9.28685137,71001.0,71000.0,18.6126925]
[1717775397421,9.24460001,71001.0,71000.0,18.6126925]
[1717775397831,9.15333701,71001.0,71000.0,18.2621925]
[1717775397969,9.15333701,71001.0,71000.0,17.9101925]
[1717775398593,9.15333701,71001.0,71000.0,20.6471925]
[1717775398789,9.15333701,71001.0,71000.0,18.6126925]
[1717775398993,9.15333701,71001.0,71000.0,18.66569696]
[1717775399609,9.10770787,71001.0,71000.0,18.66569696]
[1717775399864,7.90744902,71001.0,71000.0,18.66569696]
[1717775400278,7.90744902,71001.0,71000.0,18.64301034]
[1717775401328,7.8178792,71001.0,71000.0,18.6833278]
[1717775401502,7.71208157,71001.0,71000.0,19.6942261]
[1717775401742,7.71208157,71001.0,71000.0,17.9808278]
[1717775401949,7.71208157,71001.0,71000.0,19.34620901]
[1717775402151,7.71208157,71001.0,71000.0,18.20571149]
[1717775402363,7.67637487,71001.0,71000.0,18.24420653]
[1717775402566,6.49471915,71001.0,71000.0,18.23820653]
[1717775402770,6.49471915,71001.0,71000.0,18.26910483]
[1717775402971,6.41802476,71001.0,71000.0,18.27210483]
[1717775403384,6.18306609,71001.0,71000.0,16.73747996]
[1717775403583,9e-08,71001.0,71000.0,16.73747996]
[1717775403758,6e-07,71041.0,71040.0,1.456889]
[1717775404008,6e-07,71041.0,71040.0,3.7179626]
[1717775404219,6e-07,71041.0,71040.0,8.83751294]
[1717775404398,6e-07,71041.0,71040.0,4.46401062]
[1717775404843,6e-07,71041.0,71040.0,3.78751294]
[1717775405078,6e-07,71041.0,71040.0,4.77258857]
[1717775406449,6e-07,71041.0,71040.0,4.77558857]
[1717775407176,6e-07,71047.0,71046.0,1.485274]
[1717775407371,6e-07,71047.0,71046.0,2.81210117]
[1717775407832,6e-07,71047.0,71046.0,3.00473294]
[1717775408058,6e-07,71047.0,71046.0,3.07428328]
[1717775408450,6e-07,71047.0,71046.0,3.07728328]
[1717775409456,6e-07,71047.0,71046.0,3.08028328]
[1717775409840,0.1661006,71047.0,71046.0,3.08028328]
[1717775410256,0.2481006,71047.0,71046.0,3.08028328]
[1717775410798,0.2481006,71047.0,71046.0,8.13028328]
[1717775411558,0.2481006,71047.0,71046.0,8.80378096]
[1717775411991,0.2481006,71047.0,71046.0,9.39082506]
[1717775412390,0.2481006,71047.0,71046.0,9.47605808]
[1717775412619,0.2481006,71047.0,71046.0,6.45806708]
[1717775412825,0.00086,71081.0,71051.0,1.175204]
[1717775412826,6e-07,71052.0,71051.0,1.175204]
[1717775413025,6e-07,71052.0,71051.0,2.34872739]
[1717775413225,6e-07,71052.0,71051.0,2.49238026]
[1717775413651,6e-07,71052.0,71051.0,2.77386726]
[1717775413883,6e-07,71052.0,71051.0,2.96649903]
[1717775414225,6e-07,71052.0,71051.0,3.02685127]
[1717775414395,0.00086,71081.0,71058.0,0.98511]
[1717775414601,0.00086,71081.0,71058.0,2.02215702]
[1717775414968,0.00086,71081.0,71058.0,2.46019009]
[1717775415853,0.2514,71059.0,71058.0,2.46019009]
[1717775416284,0.2514,71059.0,71058.0,2.52354233]
[1717775416500,0.2514,71059.0,71058.0,2.06350473]
[1717775416813,0.2514,71059.0,71058.0,2.00314698]
[1717775417892,0.2514,71059.0,71058.0,1.66980947]
[1717775418099,0.2514,71059.0,71058.0,1.58097438]
[1717775418649,0.2514,71059.0,71058.0,1.58091086]
[1717775419065,0.004,71059.0,71058.0,1.29945086]
[1717775419379,0.0252,71059.0,71058.0,1.44318086]
[1717775419560,0.0252,71059.0,71058.0,1.4432083]
[1717775420403,0.0252,71059.0,71058.0,1.4995143]
[1717775420806,0.0252,71059.0,71058.0,1.4965143]
[1717775421285,0.0252,71059.0,71058.0,1.07063537]
[1717775421502,0.0252,71059.0,71058.0,1.07363537]
[1717775422109,0.0252,71059.0,71058.0,1.07063537]
[1717775422451,0.0252,71059.0,71058.0,1.07363537]
[1717775422660,0.0252,71059.0,71058.0,1.07063537]
[1717775422867,0.0252,71059.0,71058.0,1.19376763]
[1717775423086,0.0252,71059.0,71058.0,1.19676763]
[1717775423926,0.0252,71059.0,71058.0,1.07063537]
[1717775424530,0.0252,71059.0,71058.0,1.07363537]
[1717775426132,0.0252,71059.0,71058.0,1.07458137]
[1717775426319,0.0252,71059.0,71058.0,1.07461322]
[1717775426524,0.02606,71059.0,71058.0,1.07461322]
[1717775428352,0.02606,71059.0,71058.0,1.35607322]
[1717775429018,0.02606,71059.0,71058.0,1.79410629]
[1717775429167,0.02606,71059.0,71058.0,1.35607322]
[1717775429368,0.02606,71059.0,71058.0,1.79410629]
[1717775429786,0.02606,71059.0,71058.0,2.05624114]
[1717775430025,0.02606,71059.0,71058.0,2.20066007]
[1717775430182,0.02606,71059.0,71058.0,2.19766007]
[1717775430382,0.02606,71059.0,71058.0,2.47912007]
[1717775430568,0.02606,71059.0,71058.0,2.47612007]
[1717775430964,0.02606,71059.0,71058.0,2.47912007]
[1717775431258,0.02606,71059.0,71058.0,2.48805415]
[1717775431661,0.02606,71059.0,71058.0,2.67128124]
[1717775431867,0.02606,71059.0,71058.0,2.51005235]
[1717775432045,0.02606,71059.0,71058.0,2.48805415]
[1717775432455,0.02606,71059.0,71058.0,2.48531549]
[1717775432653,0.02606,71059.0,71058.0,2.50731368]
[1717775432856,1e-08,71059.0,71058.0,2.51031368]
[1717775434503,1e-08,71059.0,71058.0,2.51331368]
[1717775434916,1e-08,71059.0,71058.0,2.51631368]
[1717775438546,1e-08,71059.0,71058.0,2.51331368]
[1717775438745,1e-08,71059.0,71058.0,2.51631368]
[1717775439378,1e-08,71059.0,71058.0,2.51331368]
[1717775439552,1e-08,71059.0,71058.0,2.51631368]
[1717775439972,1e-08,71059.0,71058.0,2.57101368]
[1717775440386,1e-08,71059.0,71058.0,2.57401368]
[1717775440595,1e-08,71059.0,71058.0,2.85247368]
[1717775441024,1e-08,71059.0,71058.0,2.85547368]
[1717775441290,1e-08,71059.0,71058.0,2.99738945]
[1717775442050,1e-08,71059.0,71058.0,2.99438945]
[1717775442253,1e-08,71059.0,71058.0,2.99738945]
[1717775443104,1e-08,71059.0,71058.0,2.85547368]
[1717775443306,1e-08,71059.0,71058.0,2.85247368]
[1717775443671,1e-08,71059.0,71058.0,2.85547368]
[1717775444913,0.00086,71067.0,71066.0,0.89357]
[1717775445134,0.00086,71067.0,71066.0,2.29643679]
[1717775445353,0.00086,71067.0,71066.0,2.30521855]
[1717775446212,0.00086,71067.0,71066.0,2.30821855]
[1717775447450,0.00086,71067.0,71066.0,2.38044679]
[1717775447851,0.00086,71067.0,71066.0,2.38344679]
[1717775448023,0.00086,71067.0,71066.0,2.64582936]
[1717775449486,0.00086,71067.0,71066.0,2.38344679]
[1717775451004,0.00086,71067.0,71066.0,2.64582936]
[1717775453481,0.00086,71081.0,71079.0,0.140687]
[1717775453482,0.00035,71081.0,71079.0,0.140687]
[1717775453684,0.00035,71081.0,71080.0,0.7984166]
[1717775453891,0.00035,71081.0,71080.0,0.80715468]
[1717775454043,0.06105,71081.0,71080.0,0.80715468]
[1717775454246,0.06105,71081.0,71080.0,0.86345068]
[1717775455113,0.06105,71081.0,71080.0,0.86645068]
[1717775456478,0.08095,71081.0,71080.0,0.86645068]
[1717775456676,0.08095,71081.0,71080.0,0.86945068]
[1717775457128,0.02025,71081.0,71080.0,0.86945068]
[1717775457341,0.08095,71081.0,71080.0,0.86945068]
[1717775458293,0.08095,71081.0,71080.0,0.87039668]
[1717775459846,0.08095,71081.0,71080.0,0.86739668]
[1717775460015,0.08095,71081.0,71080.0,0.87039668]
[1717775460743,0.08095,71081.0,71080.0,0.86739668]
[1717775461479,0.02025,71081.0,71080.0,0.86739668]
[1717775461689,0.08095,71081.0,71080.0,0.86420918]
[1717775462129,0.08095,71081.0,71080.0,0.86720918]
[1717775462334,0.08095,71081.0,71080.0,0.87020918]
[1717775462698,0.06105,71081.0,71080.0,0.87020918]
[1717775462902,0.06105,71081.0,71080.0,1.01089518]
[1717775463269,0.00035,71081.0,71080.0,1.01089518]
[1717775463390,0.06105,71081.0,71080.0,1.01089518]
[1717775463804,0.08095,71081.0,71080.0,1.01089518]
[1717775464328,0.06105,71081.0,71080.0,1.01089518]
[1717775464576,0.08095,71081.0,71080.0,1.01089518]
[1717775464774,0.28095,71081.0,71080.0,0.82890971]
[1717775464975,0.08095,71081.0,71080.0,0.99665531]
[1717775465205,0.02025,71081.0,71080.0,0.99665531]
[1717775465501,0.08095,71081.0,71080.0,0.87030431]
[1717775466279,0.02025,71081.0,71080.0,0.87030431]
[1717775466615,0.08095,71081.0,71080.0,0.87030431]
[1717775466823,0.08095,71081.0,71080.0,0.87030141]
[1717775467893,0.08095,71081.0,71080.0,0.87019948]
[1717775468825,0.00035,71081.0,71080.0,0.87019948]
[1717775469066,0.06105,71081.0,71080.0,0.87019948]
[1717775469479,0.00035,71081.0,71080.0,1.71401552]
[1717775471074,0.00035,71081.0,71080.0,1.71092167]
[1717775471893,0.00035,71081.0,71080.0,1.89756175]
[1717775472327,0.00035,71081.0,71080.0,1.70792167]
[1717775473112,0.00035,71081.0,71080.0,1.71092167]
[1717775473871,0.00035,71081.0,71080.0,1.71392167]
[1717775475798,0.00035,71081.0,71080.0,1.99529467]
[1717775476885,0.00035,71081.0,71080.0,1.99229467]
[1717775477086,0.00035,71081.0,71080.0,1.98929467]
[1717775477346,0.00035,71081.0,71080.0,1.99229467]
[1717775477583,0.00035,71081.0,71080.0,1.99529467]
[1717775477989,0.00035,71081.0,71080.0,2.16170665]
[1717775478468,0.00035,71081.0,71080.0,2.1397136]
[1717775478660,0.06105,71081.0,71080.0,1.71392167]
[1717775480095,0.06105,71081.0,71080.0,1.35889257]
[1717775480303,0.06105,71081.0,71080.0,1.72074865]
[1717775480488,0.06105,71081.0,71080.0,1.71774865]
[1717775480689,0.06105,71081.0,71080.0,1.72074865]
[1717775480881,0.06105,71081.0,71080.0,1.72374865]
[1717775481286,0.06105,71081.0,71080.0,1.72074865]
[1717775481750,0.06105,71081.0,71080.0,1.68332766]
[1717775484135,0.06105,71081.0,71080.0,0.9536212]
[1717775484339,0.06105,71081.0,71080.0,1.68333135]
[1717775484945,0.00035,71081.0,71080.0,1.68333135]
[1717775485142,0.06105,71081.0,71080.0,1.68333135]
[1717775485357,0.06105,71081.0,71080.0,1.96470435]
[1717775485617,0.00035,71081.0,71080.0,1.96470435]
[1717775486488,0.00035,71081.0,71080.0,1.52687826]
[1717775486862,0.00035,71081.0,71080.0,1.96470435]
[1717775487102,0.00035,71081.0,71080.0,1.52687826]
[1717775487255,0.00035,71081.0,71080.0,1.96470435]
[1717775487455,0.00035,71081.0,71080.0,1.5238842]
[1717775487739,0.00035,71081.0,71080.0,1.9587192]
[1717775487976,0.00035,71081.0,71080.0,1.5238842]
[1717775488144,0.00035,71081.0,71080.0,1.9647192]
[1717775489455,0.00035,71081.0,71080.0,1.2349942]
[1717775489606,0.00035,71081.0,71080.0,1.96471161]
[1717775493839,0.00035,71081.0,71080.0,2.10913054]
[1717775496693,0.02025,71081.0,71080.0,2.10913054]
[1717775496870,0.02025,71081.0,71080.0,1.68333861]
[1717775497044,0.00035,71081.0,71080.0,1.68333861]
[1717775497251,0.00035,71081.0,71080.0,1.87013363]
[1717775497464,0.00035,71081.0,71080.0,1.68333861]
[1717775498898,0.02025,71081.0,71080.0,1.68333861]
[1717775499103,0.00035,71081.0,71080.0,1.82775754]
[1717775504373,0.00035,71081.0,71080.0,1.82825656]
[1717775504529,0.00035,71081.0,71080.0,1.85025067]
[1717775504935,0.00035,71081.0,71080.0,1.82825656]
[1717775505741,0.00035,71081.0,71080.0,1.78635631]
[1717775506062,0.00035,71081.0,71080.0,1.82821723]
[1717775506993,0.00035,71081.0,71080.0,1.83228179]
[1717775510110,0.00035,71081.0,71080.0,1.68647786]
[1717775510333,0.00035,71081.0,71080.0,1.8324223]
[1717775511346,0.02025,71081.0,71080.0,1.68800337]
[1717775511902,0.08095,71081.0,71080.0,1.68800337]
[1717775512703,0.06105,71081.0,71080.0,1.68800337]
[1717775513231,0.06105,71081.0,71080.0,1.68500337]
[1717775513435,0.06105,71081.0,71080.0,1.68200337]
[1717775513654,0.06105,71081.0,71080.0,1.23249623]
[1717775513655,0.22536893,71081.0,71080.0,1.23249623]
[1717775513858,0.42536893,71081.0,71080.0,0.80661151]
[1717775514061,0.42536893,71081.0,71080.0,0.52735963]
[1717775514273,0.42536893,71081.0,71080.0,0.48249871]
[1717775514491,0.42536893,71081.0,71080.0,0.54876927]
[1717775514701,0.43536893,71081.0,71080.0,0.55176927]
[1717775514897,0.43536893,71081.0,71080.0,0.48549871]
[1717775515132,0.43536893,71081.0,71080.0,0.48249871]
[1717775515244,0.43536893,71081.0,71080.0,0.48549871]
[1717775515245,0.42536893,71081.0,71080.0,0.48549871]
[1717775515873,0.56605293,71081.0,71080.0,0.48549871]
[1717775516823,0.56605293,71081.0,71080.0,0.5276479]
[1717775516824,0.57605293,71081.0,71080.0,0.5276479]
[1717775517027,0.57605293,71081.0,71080.0,0.5306479]
[1717775517455,0.57605293,71081.0,71080.0,0.48849871]
[1717775517872,0.56605293,71081.0,71080.0,0.48849871]
[1717775518291,0.56605293,71081.0,71080.0,0.5306479]
[1717775518493,0.56605293,71081.0,71080.0,0.48849871]
[1717775518697,0.57605293,71081.0,71080.0,0.48849871]
[1717775520153,0.57605293,71081.0,71080.0,0.3828738]
[1717775520382,0.56605293,71081.0,71080.0,0.3828738]
[1717775520598,0.00035,71081.0,71080.0,0.42502299]
[1717775520797,0.00035,71081.0,71080.0,0.78241848]
[1717775520999,0.00035,71081.0,71080.0,1.09230556]
[1717775521206,0.00035,71081.0,71080.0,1.0498598]
[1717775521409,0.00035,71081.0,71080.0,1.37161986]
[1717775521771,0.02025,71081.0,71080.0,1.1651953]
[1717775521978,0.00035,71081.0,71080.0,0.9288953]
[1717775522178,0.02025,71081.0,71080.0,0.9288953]
[1717775522377,0.02025,71081.0,71080.0,0.80257986]
[1717775522580,0.22025,71081.0,71080.0,0.80557986]
[1717775522782,0.37466893,71081.0,71080.0,0.3838198]
[1717775522982,0.36466893,71081.0,71080.0,0.44699097]
[1717775523140,0.02025,71081.0,71080.0,0.3838198]
[1717775523339,0.02025,71081.0,71080.0,0.45604804]
[1717775523583,0.28095,71081.0,71080.0,0.45304804]
[1717775523967,0.08095,71081.0,71080.0,0.54026813]
[1717775524335,0.28095,71081.0,71080.0,0.54026813]
[1717775524535,0.28095,71081.0,71080.0,0.45004804]
[1717775524886,0.28095,71081.0,71080.0,0.45304804]
[1717775525270,0.28095,71081.0,71080.0,0.54026813]
[1717775526119,0.28095,71081.0,71080.0,0.45604804]
[1717775526319,0.28095,71081.0,71080.0,0.54026813]
[1717775526518,0.28095,71081.0,71080.0,0.45304804]
[1717775526841,0.22025,71081.0,71080.0,0.45304804]
[1717775527041,0.28095,71081.0,71080.0,0.45304804]
[1717775527589,0.08095,71081.0,71080.0,0.45304804]
[1717775527793,0.28095,71081.0,71080.0,0.45304804]
[1717775527991,0.08095,71081.0,71080.0,0.45304804]
[1717775528193,0.06105,71081.0,71080.0,0.45604804]
[1717775528493,0.00035,71081.0,71080.0,0.59870377]
[1717775528701,0.00035,71081.0,71080.0,0.89198977]
[1717775530095,0.00035,71081.0,71080.0,0.88898977]
[1717775530428,0.00035,71081.0,71080.0,1.01528073]
[1717775530878,0.00035,71081.0,71080.0,1.01228073]
[1717775531243,0.00035,71081.0,71080.0,1.01528073]
[1717775531438,0.02025,71081.0,71080.0,0.64976649]
[1717775531646,0.08095,71081.0,71080.0,0.64676649]
[1717775531849,0.08095,71081.0,71080.0,0.52047553]
[1717775532212,0.08095,71081.0,71080.0,0.52647553]
[1717775532329,0.28095,71081.0,71080.0,0.52647553]
[1717775532552,0.28095,71081.0,71080.0,0.52347553]
[1717775532759,0.28095,71081.0,71080.0,0.52047553]
[1717775533383,0.28095,71081.0,71080.0,0.48087995]
[1717775533583,0.28095,71081.0,71080.0,0.81548291]
[1717775533799,0.28095,71081.0,71080.0,0.76981565]
[1717775533998,0.22025,71081.0,71080.0,0.76981565]
[1717775534199,0.22025,71081.0,71080.0,0.77281565]
[1717775534405,0.22025,71081.0,71080.0,0.87807326]
[1717775534617,0.22025,71081.0,71080.0,0.92078042]
[1717775534856,0.22025,71081.0,71080.0,0.88107326]
[1717775535211,0.22025,71081.0,71080.0,0.92378062]
[1717775535462,0.22025,71081.0,71080.0,0.92078129]
[1717775535615,0.22025,71081.0,71080.0,0.91778129]
[1717775535814,0.22025,71081.0,71080.0,0.81252301]
[1717775536162,0.22025,71081.0,71080.0,0.81852301]
[1717775536339,0.22025,71081.0,71080.0,0.81552301]
[1717775536663,0.22025,71081.0,71080.0,0.52058731]
[1717775536819,0.22025,71081.0,71080.0,0.82077849]
[1717775537036,0.22025,71081.0,71080.0,0.67280934]
[1717775537434,0.22025,71081.0,71080.0,0.71491686]
[1717775537633,0.36466893,71081.0,71080.0,0.71491729]
[1717775537951,0.37466893,71081.0,71080.0,0.71491729]
[1717775538288,0.47466893,71081.0,71080.0,0.38087995]
[1717775538618,0.61535293,71081.0,71080.0,0.38387995]
[1717775538999,0.61535293,71081.0,71080.0,0.37787995]
[1717775539403,0.61535293,71081.0,71080.0,0.38387995]
[1717775539558,0.61535293,71081.0,71080.0,0.38087995]
[1717775539766,0.61535293,71081.0,71080.0,0.37787995]
[1717775539964,0.61535293,71081.0,71080.0,0.38087995]
[1717775540168,0.61535293,71081.0,71080.0,0.38387995]
[1717775540573,0.71535293,71081.0,71080.0,0.0189587]
[1717775540777,0.74960888,71081.0,71080.0,0.0189587]
[1717775540969,0.74960888,71081.0,71080.0,0.006946]
[1717775543008,1.03097788,71081.0,71080.0,0.006946]
[1717775543181,0.2199,71059.0,71051.0,0.6344]
[1717775543385,0.0199,71059.0,71058.0,0.43817454]
[1717775543610,0.2199,71059.0,71058.0,0.44805059]
[1717775544077,0.0199,71059.0,71058.0,0.44805059]
[1717775544780,0.2199,71059.0,71058.0,0.44805059]
[1717775544926,0.0199,71059.0,71058.0,0.54805059]
[1717775546001,0.0199,71059.0,71058.0,0.55105059]
[1717775546191,0.0199,71059.0,71058.0,0.55405059]
[1717775546715,0.0199,71059.0,71058.0,0.55105059]
[1717775547175,0.0199,71059.0,71058.0,0.55405059]
[1717775548496,0.2199,71059.0,71058.0,0.55405059]
[1717775549881,0.0199,71059.0,71058.0,0.55405059]
[1717775551526,0.2199,71059.0,71058.0,0.61711872]